bitfinex-derivatives/quotes_BNBF0:USTF0_20250807
["timestamp","ask_amount","ask_price","bid_price","bid_amount"]
[1754553530316,0.87502887,768.65,768.03,0.87226432]
[1754553531112,0.87502887,768.67,768.05,0.87226432]
[1754553532006,0.8778257,768.67,768.05,0.87526507]
[1754553532209,0.8778257,768.68,768.04,0.87526507]
[1754553532409,0.8778257,768.71,768.07,0.87526507]
[1754553533009,0.8778257,768.72,768.08,0.87526507]
[1754553533208,0.8778257,768.72,767.89,1.1716939]
[1754553533209,0.8778257,768.72,768.07,0.87526507]
[1754553533912,0.8778257,768.72,768.08,0.971]
[1754553534110,0.8778257,768.73,768.08,0.971]
[1754553534412,0.8778257,768.72,768.08,0.971]
[1754553535114,0.8778257,768.73,768.08,0.971]
[1754553535609,0.8778257,768.72,768.08,0.971]
[1754553535908,0.8778257,768.73,768.08,0.971]
[1754553538114,0.8778257,768.65,768.1,0.87526507]
[1754553538813,0.8778257,768.66,768.1,0.87526507]
[1754553539109,0.8778257,768.66,768.09,0.87526507]
[1754553539909,0.8778257,768.66,768.1,0.87526507]
[1754553540314,0.8778257,768.67,768.09,0.87526507]
[1754553540910,0.8778257,768.66,768.09,0.87526507]
[1754553541209,0.8778257,768.69,768.08,0.971]
[1754553541413,0.8778257,768.7,768.08,0.971]
[1754553543716,0.8778257,768.68,768.08,0.971]
[1754553545414,0.8778257,768.69,768.08,0.971]
[1754553545910,0.8778257,768.68,768.08,0.971]
[1754553546214,0.8778257,768.69,768.08,0.971]
[1754553548015,0.8778257,768.7,768.08,0.971]
[1754553550616,0.8778257,768.69,768.08,0.971]
[1754553550821,0.8778257,768.7,768.08,0.971]
[1754553551221,0.8778257,768.68,768.08,0.971]
[1754553554924,0.8778257,768.69,768.08,0.971]
[1754553556831,0.8778257,768.68,768.08,0.971]
[1754553557926,0.8778257,768.67,768.08,1.84626507]
[1754553560829,0.8778257,768.66,768.08,1.84626507]
[1754553562333,0.8778257,768.69,768.08,0.971]
[1754553564833,0.8778257,768.68,768.08,0.971]
[1754553565030,0.8778257,768.69,768.08,0.971]
[1754553565334,0.8778257,768.71,768.08,0.971]
[1754553566536,0.8778257,768.73,768.08,0.971]
[1754553566738,0.8778257,768.72,768.08,0.971]
[1754553567138,0.8778257,768.73,768.08,0.971]
[1754553567331,0.8778257,768.72,768.08,0.971]
[1754553571437,1.1717596,768.9,768.08,0.971]
[1754553571642,0.87687479,768.72,768.08,0.971]
[1754553572239,0.87687479,768.71,768.08,0.971]
[1754553574244,0.87687479,768.71,768.08,1.8450639]
[1754553574846,0.87687479,768.7,768.08,1.8450639]
[1754553575045,0.87687479,768.74,768.08,0.971]
[1754553575245,0.87687479,768.73,768.08,0.971]
[1754553576342,0.87687479,768.74,768.08,0.971]
[1754553576642,0.87687479,768.73,768.08,0.971]
[1754553579043,0.87687479,768.72,768.08,0.971]
[1754553581149,0.87687479,768.72,768.08,1.8450639]
[1754553581747,0.87687479,768.72,768.08,0.971]
[1754553582146,0.87687479,768.91,768.08,0.971]
[1754553582847,0.87687479,768.82,768.08,0.971]
[1754553584552,0.87687479,768.75,768.08,0.971]
[1754553585053,0.87687479,768.75,767.9,0.8740639]
[1754553585247,0.87687479,768.75,767.63,1.1716939]
[1754553585248,0.87687479,768.72,767.92,0.8740639]
[1754553586551,0.87687479,768.69,767.94,0.8740639]
[1754553588355,0.87687479,768.68,767.95,1.8260639]
[1754553590351,0.87687479,768.67,767.95,0.952]
[1754553592158,0.87687479,768.59,768.0,0.8740639]
[1754553592758,0.87687479,768.58,768.0,0.8740639]
[1754553593159,0.87687479,768.59,768.0,0.8740639]
[1754553593354,0.87687479,768.58,768.0,0.8740639]
[1754553593754,0.87687479,768.57,768.01,0.8740639]
[1754553594055,0.87687479,768.56,768.02,0.8740639]
[1754553594253,0.87687479,768.56,768.01,0.8740639]
[1754553594457,0.87687479,768.55,768.02,0.8740639]
[1754553596757,0.87687479,768.59,767.99,0.8740639]
[1754553600162,4.1009574,769.89,767.95,0.952]
[1754553600965,0.8772534,768.66,768.06,0.8745921]
[1754553602664,0.8772534,768.65,768.06,0.8745921]
[1754553603165,0.8772534,768.65,768.07,0.8745921]
[1754553603865,0.8772534,768.64,768.06,0.8745921]
[1754553605960,0.8772534,768.65,768.06,0.8745921]
[1754553606165,0.8772534,768.64,768.06,0.8745921]
[1754553606561,0.8772534,768.65,768.07,0.8745921]
[1754553606760,0.8772534,768.6,768.09,0.8745921]
[1754553608867,0.8772534,768.64,768.06,0.8745921]
[1754553610167,0.8772534,768.36,767.95,0.952]
[1754553611569,0.8772534,768.37,767.95,0.952]
[1754553614168,2.924178,769.33,767.95,0.952]
[1754553614169,0.8772534,768.41,767.95,0.952]
[1754553614863,0.8772534,768.33,767.95,0.952]
[1754553616170,0.8772534,768.34,767.95,0.952]
[1754553617069,0.8772534,768.33,767.95,0.952]
[1754553617266,0.8772534,768.34,767.95,0.952]
[1754553618366,0.8772534,768.35,767.95,0.952]
[1754553618570,0.8772534,768.34,767.95,0.952]
[1754553619070,0.8772534,768.29,767.95,0.952]
[1754553619272,0.8772534,768.3,767.95,0.952]
[1754553619471,0.8772534,768.26,767.95,0.952]
[1754553620168,0.8772534,768.27,767.95,0.952]
[1754553621269,0.8772534,768.28,767.95,0.952]
[1754553621669,0.8772534,768.27,767.95,0.952]
[1754553622170,0.8772534,768.28,767.95,0.952]
[1754553623972,0.8772534,768.3,767.95,0.952]
[1754553624172,0.8772534,768.31,767.95,0.952]
[1754553624370,0.8772534,768.29,767.95,0.952]
[1754553625473,1.169671,768.5,767.43,0.8734266]
[1754553625672,0.8755744,768.3,767.43,0.8734266]
[1754553625972,0.8755744,768.29,767.43,0.8734266]
[1754553626273,0.8755744,768.3,767.42,0.8734266]
[1754553628073,0.8755744,768.3,767.43,0.987]
[1754553628579,0.8755744,768.31,767.43,0.987]
[1754553628776,0.8755744,768.3,767.43,0.987]
[1754553629180,0.8755744,768.28,767.43,1.8604266]
[1754553629875,0.8755744,768.27,767.44,0.8734266]
[1754553630380,0.8755744,768.19,767.49,0.8734266]
[1754553630580,0.8755744,768.19,767.5,0.8734266]
[1754553630880,0.8755744,768.19,767.49,0.8734266]
[1754553632279,0.8755744,768.26,767.5,0.8734266]
[1754553632483,0.8755744,768.29,767.53,0.8734266]
[1754553632681,0.8755744,768.28,767.52,0.8734266]
[1754553633482,0.8755744,768.25,767.55,0.8734266]
[1754553634085,0.8755744,768.26,767.54,0.8734266]
[1754553634683,2.924178,769.05,767.43,0.987]
[1754553634684,0.8755744,768.28,767.56,0.8734266]
[1754553636187,0.8755744,768.27,767.57,0.8734266]
[1754553636684,0.8755744,768.28,767.57,0.8734266]
[1754553636887,0.8755744,768.28,767.56,0.8734266]
[1754553637187,0.8755744,768.28,767.57,0.8734266]
[1754553638287,0.8755744,768.27,767.57,0.8734266]
[1754553641287,0.8755744,768.26,767.58,0.8734266]
[1754553642191,0.8755744,768.25,767.58,0.8734266]
[1754553642388,0.8755744,768.25,767.59,0.8734266]
[1754553642887,0.4144029,768.24,767.59,0.8734266]
[1754553643092,0.4144029,768.23,767.58,0.8734266]
[1754553643391,0.4144029,768.22,767.58,0.8734266]
[1754553643591,0.8755744,768.25,767.58,0.8734266]
[1754553643788,0.4144417,768.24,767.58,0.8734266]
[1754553644088,0.4144417,768.23,767.59,0.8734266]
[1754553644293,0.4144417,768.22,767.59,0.8734266]
[1754553644589,0.8755744,768.24,767.59,0.8734266]
[1754553644788,0.414448,768.23,767.59,0.8734266]
[1754553644992,0.414448,768.22,767.59,0.8734266]
[1754553645194,0.8755744,768.24,767.59,0.8734266]
[1754553645491,0.4144558,768.23,767.59,0.8734266]
[1754553645690,0.4144558,768.22,767.59,0.8734266]
[1754553645899,0.8755744,768.24,767.59,0.8734266]
[1754553646091,0.4144558,768.23,767.59,0.8734266]
[1754553646390,0.4144558,768.22,767.59,0.8734266]
[1754553646694,0.8755744,768.24,767.59,0.8734266]
[1754553646895,0.4144651,768.23,767.59,0.8734266]
[1754553647092,0.4144651,768.22,767.59,0.8734266]
[1754553647392,0.8755744,768.25,767.58,0.8734266]
[1754553647594,0.4144759,768.24,767.58,0.8734266]
[1754553647795,0.4144759,768.23,767.58,0.8734266]
[1754553647992,0.4144759,768.22,767.58,0.8734266]
[1754553648192,0.8755744,768.25,767.58,0.8734266]
[1754553648392,0.4144883,768.24,767.58,0.8734266]
[1754553648591,0.4144883,768.23,767.58,0.8734266]
[1754553648798,0.8755744,768.25,767.58,0.8734266]
[1754553648799,0.4144883,768.22,767.58,0.8734266]
[1754553648996,0.8755744,768.25,767.58,0.8734266]
[1754553649197,0.4144883,768.24,767.59,0.8734266]
[1754553649394,0.4144883,768.23,767.59,0.8734266]
[1754553649695,0.4144883,768.22,767.59,0.8734266]
[1754553649894,0.8755744,768.25,767.59,0.8734266]
[1754553650098,0.4145023,768.24,767.59,0.8734266]
[1754553650393,0.4145023,768.23,767.59,0.8734266]
[1754553651098,0.4145023,768.23,767.58,0.8734266]
[1754553651298,0.4145023,768.22,767.58,0.8734266]
[1754553651496,0.8755744,768.26,767.58,0.8734266]
[1754553651699,0.4145313,768.25,767.58,0.8734266]
[1754553651998,0.4145313,768.24,767.58,0.8734266]
[1754553652199,0.4145313,768.23,767.58,0.8734266]
[1754553652395,0.4145313,768.22,767.58,0.8734266]
[1754553652694,0.8755744,768.25,767.58,0.8734266]
[1754553652899,0.4145475,768.24,767.59,0.8734266]
[1754553653099,0.4145475,768.23,767.59,0.8734266]
[1754553653299,0.8755744,768.25,767.59,0.8734266]
[1754553653497,0.4145612,768.24,767.59,0.8734266]
[1754553653697,0.4145612,768.23,767.59,0.8734266]
[1754553653897,0.8755744,768.25,767.59,0.8734266]
[1754553654096,0.4145612,768.24,767.59,0.8734266]
[1754553654300,0.4145696,768.23,767.59,0.8734266]
[1754553654497,0.4145696,768.22,767.59,0.8734266]
[1754553654696,0.8755744,768.25,767.59,0.8734266]
[1754553655002,0.4145817,768.24,767.59,0.8734266]
[1754553655200,0.4145817,768.23,767.59,0.8734266]
[1754553655397,0.4145817,768.22,767.59,0.8734266]
[1754553655597,0.8755744,768.24,767.59,0.8734266]
[1754553655796,0.4146039,768.23,767.59,0.8734266]
[1754553655999,0.4146039,768.22,767.59,0.8734266]
[1754553656197,0.8755744,768.24,767.59,0.8734266]
[1754553656402,0.4146277,768.23,767.6,0.8734266]
[1754553656696,0.4146277,768.22,767.6,0.8734266]
[1754553656896,0.8755744,768.24,767.6,0.8734266]
[1754553657097,0.8755744,768.22,767.61,0.8734266]
[1754553657301,0.4146275,768.21,767.61,0.8734266]
[1754553659096,0.4146275,768.21,767.62,0.8734266]
[1754553659301,0.4146275,768.21,767.43,0.987]
[1754553659302,0.8755744,768.49,767.67,0.8734266]
[1754553659502,0.4146336,768.48,767.67,0.8734266]
[1754553659803,0.4146336,768.47,767.67,0.8734266]
[1754553660001,0.4146336,768.46,767.67,0.8734266]
[1754553660203,0.4146336,768.45,767.67,0.8734266]
[1754553660498,0.4146336,768.44,767.67,0.8734266]
[1754553660797,0.4146336,768.43,767.67,0.8734266]
[1754553661000,0.4146336,768.42,767.67,0.8734266]
[1754553661300,0.4146336,768.41,767.67,0.8734266]
[1754553661498,0.8755744,768.48,767.67,0.8734266]
[1754553661802,0.4146374,768.47,767.67,0.8734266]
[1754553662001,0.4146374,768.46,767.66,0.8734266]
[1754553662302,0.4146374,768.45,767.66,0.8734266]
[1754553662597,0.4146374,768.44,767.66,0.8734266]
[1754553662803,0.8755744,768.49,767.69,0.8734266]
[1754553663097,0.8755744,768.5,767.71,0.8734266]
[1754553663398,0.8755744,768.7,767.89,0.8734266]
[1754553663601,0.4143412,768.69,767.89,0.8734266]
[1754553663804,0.4143412,768.68,767.89,0.8734266]
[1754553664000,0.4143412,768.67,767.89,0.8734266]
[1754553664199,0.4143412,768.66,767.89,0.8734266]
[1754553664403,0.4143412,768.65,767.88,0.8734266]
[1754553664603,0.4143412,768.64,767.88,0.8734266]
[1754553664803,0.8755744,768.71,767.88,0.8734266]
[1754553665004,0.4141888,768.7,767.88,0.8734266]
[1754553665203,0.4141888,768.69,767.88,0.8734266]
[1754553665504,0.4141888,768.68,767.86,0.8734266]
[1754553665698,0.4141888,768.67,767.86,0.8734266]
[1754553665900,0.4141888,768.66,767.86,0.8734266]
[1754553666100,0.8755744,768.72,767.86,0.8734266]
[1754553666301,0.8755744,768.72,767.49,1.749184]
[1754553666302,0.4140512,768.71,767.85,0.8734266]
[1754553666506,0.4140512,768.7,767.85,0.8734266]
[1754553666802,0.4140512,768.69,767.86,0.8734266]
[1754553667003,0.4140512,768.68,767.86,0.8734266]
[1754553667302,0.4140512,768.67,767.86,0.8734266]
[1754553667506,0.4140512,768.66,767.86,0.8734266]
[1754553667704,0.8755744,768.73,767.86,0.8734266]
[1754553668003,0.4138094,768.72,767.86,0.8734266]
[1754553668308,0.4138094,768.71,767.85,0.8734266]
[1754553668507,0.4138094,768.7,767.85,0.8734266]
[1754553668707,0.4138094,768.69,767.85,0.8734266]
[1754553669006,0.4138094,768.68,767.85,0.8734266]
[1754553669206,0.8755744,768.75,767.84,0.8734266]
[1754553669407,0.41359482,768.74,767.84,0.8734266]
[1754553669608,0.41359482,768.73,767.84,0.8734266]
[1754553669901,0.41359482,768.72,767.84,0.8734266]
[1754553670102,0.41359482,768.71,767.84,0.8734266]
[1754553670302,0.41359482,768.7,767.84,0.8734266]
[1754553670507,0.41359482,768.69,767.84,0.8734266]
[1754553670802,0.8755744,768.77,767.84,0.8734266]
[1754553671002,0.4134967,768.76,767.84,0.8734266]
[1754553671301,0.4134967,768.75,767.85,0.8734266]
[1754553671506,0.4134967,768.74,767.84,0.8734266]
[1754553671703,0.4134967,768.73,767.84,0.8734266]
[1754553672007,0.4134967,768.72,767.84,0.8734266]
[1754553672205,0.4134967,768.71,767.84,0.8734266]
[1754553672505,0.4134967,768.7,767.83,0.8734266]
[1754553672704,0.4133172,768.69,767.83,0.8734266]
[1754553672907,0.8755744,768.77,767.84,1.9814266]
[1754553673107,0.41203111,768.76,767.84,1.9814266]
[1754553673306,0.41203111,768.75,767.84,1.9814266]
[1754553673504,0.41203111,768.74,767.85,0.8734266]
[1754553673709,0.41203111,768.73,767.85,0.8734266]
[1754553674005,0.8755744,768.77,767.85,0.8734266]
[1754553674006,0.41203111,768.72,767.85,0.8734266]
[1754553674205,0.41203111,768.71,767.85,0.8734266]
[1754553674405,0.41203111,768.7,767.84,1.9814266]
[1754553674705,0.8755744,768.78,767.84,1.9814266]
[1754553674908,0.41187062,768.77,767.84,1.9814266]
[1754553675208,0.41187062,768.76,767.84,1.9814266]
[1754553675408,0.41187062,768.75,767.84,1.9814266]
[1754553675608,0.41187062,768.74,767.84,1.9814266]
[1754553675904,0.41187062,768.73,767.84,1.9814266]
[1754553676106,0.41187062,768.72,767.84,1.9814266]
[1754553676303,0.41187062,768.71,767.84,1.9814266]
[1754553676502,0.8755744,768.8,767.84,1.108]
[1754553676708,1.28729863,768.79,767.84,1.9814266]
[1754553676908,0.41172423,768.78,767.84,1.9814266]
[1754553677106,0.41172423,768.77,767.84,1.9814266]
[1754553677309,0.41172423,768.76,767.84,1.108]
[1754553677508,0.41172423,768.75,767.84,1.108]
[1754553677706,0.41172423,768.74,767.84,1.108]
[1754553677907,0.41172423,768.73,767.84,1.108]
[1754553678106,0.41172423,768.72,767.84,1.108]
[1754553678310,0.41172423,768.71,767.84,1.108]
[1754553678608,0.41172423,768.7,767.84,1.108]
[1754553678910,0.41172423,768.69,767.84,1.108]
[1754553679104,0.8755744,768.77,767.84,1.108]
[1754553679308,0.41160991,768.76,767.84,1.108]
[1754553679506,0.41160991,768.75,767.84,1.108]
[1754553679710,0.41160991,768.74,767.84,1.108]
[1754553679912,0.41160991,768.73,767.84,1.108]
[1754553680108,0.41160991,768.72,767.84,1.9814266]
[1754553680309,0.41160991,768.71,767.84,1.108]
[1754553680513,0.41160991,768.7,767.84,1.108]
[1754553680809,0.41160991,768.69,767.84,1.108]
[1754553681012,0.8755744,768.78,767.84,1.108]
[1754553681208,0.41153475,768.77,767.84,1.108]
[1754553681412,0.41153475,768.76,767.84,1.108]
[1754553681713,0.41153475,768.75,767.84,1.108]
[1754553681913,0.41153475,768.74,767.84,1.108]
[1754553682113,0.41153475,768.73,767.84,1.108]
[1754553682413,1.98092109,769.02,767.84,1.108]
[1754553682414,0.41153475,768.72,767.84,1.108]
[1754553682608,0.41153475,768.71,767.84,1.108]
[1754553682913,0.41153475,768.7,767.84,1.108]
[1754553683111,0.8755744,768.79,767.84,1.108]
[1754553683312,0.41149993,768.78,767.84,1.108]
[1754553683610,0.41149993,768.77,767.84,1.108]
[1754553683810,0.41149993,768.76,767.84,1.108]
[1754553684110,0.41149993,768.75,767.84,1.108]
[1754553684314,0.41149993,768.74,767.84,1.108]
[1754553684614,0.41149993,768.73,767.84,1.108]
[1754553684814,0.41149993,768.72,767.84,1.108]
[1754553685011,0.8755744,768.83,767.84,1.108]
[1754553685211,0.41147882,768.82,767.84,1.108]
[1754553685410,0.41147882,768.81,767.84,1.108]
[1754553685615,0.41147882,768.8,767.84,1.108]
[1754553685815,0.41147882,768.79,767.84,1.108]
[1754553686016,0.41147882,768.78,767.84,1.108]
[1754553686212,0.41147882,768.77,767.84,1.108]
[1754553686417,0.41147882,768.76,767.84,1.108]
[1754553686615,0.41147882,768.75,767.84,1.108]
[1754553686818,0.41147882,768.74,767.84,1.108]
[1754553687018,0.41147882,768.73,767.84,1.108]
[1754553687214,0.8755744,768.83,767.84,1.108]
[1754553687419,0.41148054,768.82,767.84,1.108]
[1754553687619,0.41148054,768.81,767.84,1.108]
[1754553687816,0.41148054,768.8,767.84,1.108]
[1754553688117,0.41148054,768.79,767.84,1.108]
[1754553688420,0.41148054,768.78,767.84,1.108]
[1754553688720,0.41148054,768.77,767.84,1.108]
[1754553688921,0.41148054,768.76,767.84,1.108]
[1754553689116,0.41148054,768.75,767.84,1.108]
[1754553689418,0.41148054,768.74,767.84,1.108]
[1754553689617,0.41148054,768.73,767.84,1.108]
[1754553689816,0.41148054,768.72,767.84,1.108]
[1754553690020,0.8755744,768.82,767.84,1.108]
[1754553690221,0.41151406,768.81,767.84,1.108]
[1754553690421,0.41151406,768.8,767.84,1.108]
[1754553690619,0.41151406,768.79,767.84,1.108]
[1754553690816,1.28708846,768.78,767.84,1.108]
[1754553691022,0.41151406,768.77,767.84,1.108]
[1754553691223,0.4115732,768.76,767.84,1.108]
[1754553691419,0.8755744,768.77,767.84,1.108]
[1754553691420,0.4115732,768.75,767.84,1.108]
[1754553691620,0.4115732,768.74,767.84,1.108]
[1754553691821,0.4115732,768.73,767.84,1.108]
[1754553692023,0.4115732,768.72,767.84,1.108]
[1754553692222,0.4115732,768.71,767.84,1.108]
[1754553692425,0.4115732,768.7,767.84,1.108]
[1754553692625,0.4115732,768.69,767.84,1.108]
[1754553692825,0.4115732,768.68,767.84,1.108]
[1754553693125,0.4115732,768.67,767.84,1.108]
[1754553693321,0.8755744,768.76,767.84,1.108]
[1754553693521,0.41166545,768.75,767.84,1.108]
[1754553693727,0.41166545,768.74,767.84,1.108]
[1754553693921,0.41166545,768.73,767.84,1.108]
[1754553694126,0.41166545,768.72,767.84,1.108]
[1754553694327,0.41166545,768.71,767.84,1.108]
[1754553694523,0.41166545,768.7,767.84,1.108]
[1754553694724,0.41166545,768.69,767.84,1.108]
[1754553695023,0.41166545,768.68,767.84,1.108]
[1754553695223,0.41166545,768.67,767.84,1.108]
[1754553695427,0.41166545,768.66,767.84,1.108]
[1754553695727,0.41166545,768.65,767.84,1.108]
[1754553695928,0.41166545,768.64,767.84,1.108]
[1754553696124,0.8755744,768.72,767.84,1.108]
[1754553696327,0.41175347,768.71,767.84,1.108]
[1754553696525,0.41175347,768.7,767.84,1.108]
[1754553696825,0.41175347,768.69,767.84,1.9814266]
[1754553697125,0.41175347,768.68,767.85,0.8734266]
[1754553697323,0.41175347,768.67,767.85,0.8734266]
[1754553697528,0.41175347,768.66,767.85,0.8734266]
[1754553697824,0.41175347,768.65,767.85,0.8734266]
[1754553698025,0.8755744,768.74,767.85,0.8734266]
[1754553698325,0.41177747,768.73,767.85,0.8734266]
[1754553698531,0.41177747,768.72,767.84,1.108]
[1754553698729,0.41177747,768.71,767.84,1.9814266]
[1754553698928,0.41177747,768.7,767.84,1.108]
[1754553699126,0.8755744,768.82,767.84,1.108]
[1754553699324,1.28735358,768.81,767.84,1.9814266]
[1754553699529,0.41177918,768.8,767.84,1.9814266]
[1754553701229,0.41177918,768.79,767.84,1.9814266]
[1754553701429,0.41177918,768.78,767.84,1.9814266]
[1754553701631,0.41177918,768.77,767.84,1.9814266]
[1754553701835,0.41179642,768.76,767.84,1.9814266]
[1754553702029,0.41179642,768.75,767.84,1.9814266]
[1754553702334,0.41179642,768.74,767.85,0.8734266]
[1754553702632,0.41179642,768.73,767.85,0.8734266]
[1754553702831,0.41179642,768.72,767.85,0.8734266]
[1754553703028,0.41179642,768.71,767.85,0.8734266]
[1754553703234,0.8755744,768.8,767.85,0.8734266]
[1754553703434,0.41215921,768.79,767.85,0.8734266]
[1754553703633,0.41215921,768.78,767.85,0.8734266]
[1754553703833,0.41215921,768.77,767.84,1.9814266]
[1754553704136,0.41215921,768.76,767.84,1.108]
[1754553704338,0.8755744,768.89,767.84,1.108]
[1754553704530,0.4122059,768.88,767.84,1.108]
[1754553704736,0.4122059,768.87,767.84,1.108]
[1754553704934,0.4122059,768.86,767.84,1.108]
[1754553705235,0.4122059,768.85,767.84,1.108]
[1754553705436,0.4122059,768.84,767.84,1.108]
[1754553705632,0.4122059,768.83,767.84,1.108]
[1754553705837,0.4122059,768.82,767.84,1.108]
[1754553706032,0.22641509,769.02,767.84,1.108]
[1754553706033,0.4122059,768.81,767.84,1.108]
[1754553706232,0.41225622,768.8,767.84,1.108]
[1754553706433,0.41225622,768.79,767.84,1.108]
[1754553706634,0.41225622,768.78,767.84,1.108]
[1754553706834,0.41225622,768.77,767.84,1.108]
[1754553707036,0.41225622,768.76,767.84,1.108]
[1754553707237,0.41225622,768.75,767.84,1.108]
[1754553707537,0.41225622,768.74,767.84,1.108]
[1754553707738,0.8755744,768.86,767.84,1.108]
[1754553707939,0.41237528,768.85,767.84,1.108]
[1754553708134,0.41237528,768.84,767.84,1.108]
[1754553708341,0.41237528,768.83,767.84,1.9814266]
[1754553708536,0.41237528,768.82,767.84,1.9814266]
[1754553708743,0.41237528,768.81,767.84,1.9814266]
[1754553709040,0.41237528,768.8,767.84,1.9814266]
[1754553709236,0.41237528,768.79,767.84,1.9814266]
[1754553709442,0.41237528,768.78,767.85,0.8734266]
[1754553709740,0.41237528,768.77,767.85,0.8734266]
[1754553709941,0.41237528,768.76,767.85,0.8734266]
[1754553710141,0.41237528,768.75,767.85,0.8734266]
[1754553710340,0.41237528,768.74,767.85,0.8734266]
[1754553710540,0.41237528,768.73,767.85,0.8734266]
[1754553710741,0.41237528,768.72,767.85,0.8734266]
[1754553710940,0.8755744,768.82,767.85,0.8734266]
[1754553711143,0.41260694,768.81,767.86,0.8734266]
[1754553711344,0.8755744,768.79,767.87,0.8734266]
[1754553711545,0.41260694,768.78,767.93,0.8734266]
[1754553711743,0.8755744,768.85,767.94,0.8734266]
[1754553711944,0.41266272,768.84,767.94,0.8734266]
[1754553712142,0.41266272,768.83,767.95,0.8734266]
[1754553712341,0.41266272,768.82,768.0,0.8734266]
[1754553712546,0.8755744,768.92,767.95,0.8734266]
[1754553712746,0.41273448,768.91,767.95,0.8734266]
[1754553713043,0.8755744,768.92,767.95,0.8734266]
[1754553713044,0.41273448,768.9,767.95,0.8734266]
[1754553713242,0.41273448,768.89,767.96,0.8734266]
[1754553713447,0.41273448,768.88,767.96,0.8734266]
[1754553713647,0.41273448,768.87,767.96,0.8734266]
[1754553713849,0.41273448,768.86,767.96,0.8734266]
[1754553714050,0.41273448,768.85,767.96,0.8734266]
[1754553714244,0.41273448,768.84,767.97,0.8734266]
[1754553714549,0.41273448,768.83,767.96,0.8734266]
[1754553714849,0.41273448,768.82,767.96,0.8734266]
[1754553715046,0.41273448,768.81,767.96,0.8734266]
[1754553715250,0.41304229,768.8,767.98,0.8734266]
[1754553715451,0.8755744,768.89,767.97,0.8734266]
[1754553715645,0.41302556,768.88,767.97,0.8734266]
[1754553715844,0.41302556,768.87,767.97,0.8734266]
[1754553716045,0.41302556,768.86,767.97,0.8734266]
[1754553716248,0.41302556,768.86,767.84,1.108]
[1754553716249,0.41302556,768.85,767.99,0.8734266]
[1754553716450,0.41302556,768.84,767.99,0.8734266]
[1754553716650,0.41302556,768.83,767.99,0.8734266]
[1754553716846,0.41302556,768.82,767.99,0.8734266]
[1754553717048,0.41302556,768.81,767.99,0.8734266]
[1754553717345,0.41302556,768.8,768.0,0.8734266]
[1754553717551,0.41302556,768.79,768.0,0.8734266]
[1754553717747,0.41302556,768.78,767.99,0.8734266]
[1754553717947,0.8755744,768.85,767.99,0.8734266]
[1754553718246,0.22637459,769.21,767.84,1.108]
[1754553718247,0.8755744,768.83,768.01,0.8734266]
[1754553718450,0.41331917,768.82,768.01,0.8734266]
[1754553719252,0.8755744,768.81,768.03,0.8734266]
[1754553719449,0.41331917,768.8,768.04,0.8734266]
[1754553719654,0.41331917,768.79,768.04,0.8734266]
[1754553719848,0.41331917,768.78,768.04,0.8734266]
[1754553720052,0.41331917,768.77,768.04,0.8734266]
[1754553720252,0.41331917,768.76,768.04,0.8734266]
[1754553720449,0.41331917,768.75,768.04,0.8734266]
[1754553720649,0.41331917,768.74,768.04,0.8734266]
[1754553720950,0.8755744,768.82,768.04,0.8734266]
[1754553721253,0.22637459,769.21,768.13,0.8734266]
[1754553721254,0.8755744,768.69,768.13,0.8734266]
[1754553721463,0.41372007,768.68,768.13,0.8734266]
[1754553721655,0.41372007,768.67,768.14,0.8734266]
[1754553722256,1.28929447,768.67,768.15,0.8734266]
[1754553722455,0.41372007,768.66,768.15,0.8734266]
[1754553724555,0.8755744,768.68,768.15,0.8734266]
[1754553724753,0.41386197,768.67,768.15,0.8734266]
[1754553724956,0.41386197,768.66,768.15,0.8734266]
[1754553725154,0.8755744,768.69,768.16,0.8734266]
[1754553725357,0.8755744,768.69,768.15,0.8734266]
[1754553725358,0.41384236,768.68,768.15,0.8734266]
[1754553725557,0.8755744,768.69,768.15,0.8734266]
[1754553725558,0.41384236,768.67,768.15,0.8734266]
[1754553725856,1.169671,768.82,768.15,0.8734266]
[1754553725857,0.8755744,768.7,768.15,0.8734266]
[1754553726058,0.41383183,768.69,768.15,0.8734266]
[1754553726256,0.41383183,768.68,768.14,0.8734266]
[1754553726459,0.8755744,768.71,768.14,0.8734266]
[1754553726657,0.41380415,768.7,768.14,0.8734266]
[1754553726856,0.41380415,768.69,768.14,0.8734266]
[1754553727055,0.41380415,768.68,768.14,0.8734266]
[1754553727258,0.8755744,768.71,768.14,0.8734266]
[1754553727457,0.41377895,768.7,768.14,0.8734266]
[1754553727656,0.41377895,768.69,768.14,0.8734266]
[1754553727859,0.41377895,768.68,768.14,0.8734266]